[Event "Titled Tuesday Blitz July 4 Late 2023"]
[White "Pein, Jonathan"]
[Black "Ballester Llagaria, Luis Eduardo"]
[WhiteFideId "417092"]
[BlackFideId "2297620"]
[WhiteElo "2426"]
[BlackElo "2593"]
[Result "0-1"]
[Round "4"]
[TimeControl "180+2"]
[Date "2023.07.04"]
[WhiteClock "0:00:06"]
[BlackClock "0:00:12"]
[Board "75"]

1. e4 {[%clk 0:03:00]}  c5 {[%clk 0:02:56]} 2. Nf3 {[%clk 0:03:00]}  e6 {[%clk 0:02:57]} 3. d4 {[%clk 0:02:57]}  cxd4 {[%clk 0:02:58]} 4. Nxd4 {[%clk 0:02:58]}  Nc6 {[%clk 0:02:59]} 5. Nc3 {[%clk 0:02:58]}  Qc7 {[%clk 0:02:53]} 6. Be3 {[%clk 0:02:50]}  a6 {[%clk 0:02:53]} 7. Nxc6 {[%clk 0:02:51]}  bxc6 {[%clk 0:02:53]} 8. Qf3 {[%clk 0:02:51]}  d5 {[%clk 0:02:50]} 9. Qg3 {[%clk 0:02:45]}  Qxg3 {[%clk 0:02:49]} 10. hxg3 {[%clk 0:02:46]}  Nf6 {[%clk 0:02:50]} 11. e5 {[%clk 0:02:45]}  Ng4 {[%clk 0:02:42]} 12. Bf4 {[%clk 0:02:44]}  Bc5 {[%clk 0:02:39]} 13. Nd1 {[%clk 0:02:42]}  f6 {[%clk 0:02:18]} 14. exf6 {[%clk 0:02:39]}  gxf6 {[%clk 0:02:18]} 15. Be2 {[%clk 0:02:39]}  e5 {[%clk 0:02:15]} 16. Bd2 {[%clk 0:02:34]}  Be6 {[%clk 0:02:01]} 17. f3 {[%clk 0:02:29]}  f5 {[%clk 0:01:42]} 18. fxg4 {[%clk 0:02:29]}  fxg4 {[%clk 0:01:43]} 19. Bg5 {[%clk 0:02:19]}  O-O {[%clk 0:01:29]} 20. c3 {[%clk 0:02:14]}  Rf5 {[%clk 0:01:28]} 21. Be3 {[%clk 0:02:05]}  d4 {[%clk 0:01:26]} 22. Bd2 {[%clk 0:01:54]}  h5 {[%clk 0:01:21]} 23. Bd3 {[%clk 0:01:51]}  e4 {[%clk 0:01:19]} 24. cxd4 {[%clk 0:01:18]}  Bxd4 {[%clk 0:01:12]} 25. Be2 {[%clk 0:01:19]}  Rd8 {[%clk 0:01:05]} 26. Bc3 {[%clk 0:01:12]}  c5 {[%clk 0:01:04]} 27. Rf1 {[%clk 0:01:09]}  Rxf1+ {[%clk 0:00:54]} 28. Bxf1 {[%clk 0:01:09]}  Rd6 {[%clk 0:00:44]} 29. Be2 {[%clk 0:01:05]}  Kh7 {[%clk 0:00:42]} 30. Nf2 {[%clk 0:01:05]}  Bf5 {[%clk 0:00:40]} 31. Bc4 {[%clk 0:01:04]}  e3 {[%clk 0:00:39]} 32. Nd1 {[%clk 0:00:56]}  Be4 {[%clk 0:00:39]} 33. Bxd4 {[%clk 0:00:51]}  cxd4 {[%clk 0:00:40]} 34. Rc1 {[%clk 0:00:31]}  d3 {[%clk 0:00:31]} 35. Bxd3 {[%clk 0:00:15]}  Rxd3 {[%clk 0:00:27]} 36. Rc3 {[%clk 0:00:14]}  Rd6 {[%clk 0:00:18]} 37. Nxe3 {[%clk 0:00:13]}  Kg6 {[%clk 0:00:18]} 38. Ke2 {[%clk 0:00:12]}  Re6 {[%clk 0:00:19]} 39. Kd2 {[%clk 0:00:09]}  Rf6 {[%clk 0:00:19]} 40. Ke2 {[%clk 0:00:08]}  Re6 {[%clk 0:00:20]} 41. Kf2 {[%clk 0:00:08]}  Rf6+ {[%clk 0:00:19]} 42. Ke1 {[%clk 0:00:07]}  Re6 {[%clk 0:00:18]} 43. Ke2 {[%clk 0:00:02]}  Bxg2 {[%clk 0:00:17]} 44. b4 {[%clk 0:00:02]}  Bf3+ {[%clk 0:00:17]} 45. Kd2 {[%clk 0:00:02]}  Rd6+ {[%clk 0:00:16]} 46. Kc2 {[%clk 0:00:03]}  Kg5 {[%clk 0:00:14]} 47. a4 {[%clk 0:00:03]}  Rd4 {[%clk 0:00:14]} 48. Kb3 {[%clk 0:00:02]}  h4 {[%clk 0:00:07]} 49. gxh4+ {[%clk 0:00:03]}  Kf4 {[%clk 0:00:08]} 50. h5 {[%clk 0:00:03]}  g3 {[%clk 0:00:08]} 51. h6 {[%clk 0:00:03]}  Rd7 {[%clk 0:00:08]} 52. b5 {[%clk 0:00:02]}  axb5 {[%clk 0:00:07]} 53. axb5 {[%clk 0:00:03]}  Rh7 {[%clk 0:00:08]} 54. b6 {[%clk 0:00:03]}  Rxh6 {[%clk 0:00:08]} 55. Kb4 {[%clk 0:00:03]}  Rxb6+ {[%clk 0:00:09]} 56. Kc5 {[%clk 0:00:04]}  Re6 {[%clk 0:00:09]} 57. Kd4 {[%clk 0:00:04]}  Re4+ {[%clk 0:00:09]} 58. Kd3 {[%clk 0:00:03]}  Rxe3+ {[%clk 0:00:09]} 59. Kd2 {[%clk 0:00:04]}  Rxc3 {[%clk 0:00:10]} 60. Kxc3 {[%clk 0:00:05]}  g2 {[%clk 0:00:11]} 61. Kd2 {[%clk 0:00:02]}  g1=Q {[%clk 0:00:12]} 62. Kc3 {[%clk 0:00:03]}  Qe3+ {[%clk 0:00:11]} 63. Kb2 {[%clk 0:00:04]}  Qd3 {[%clk 0:00:11]} 64. Ka1 {[%clk 0:00:05]}  Qd2 {[%clk 0:00:11]} 65. Kb1 {[%clk 0:00:05]}  Bd5 {[%clk 0:00:12]} 66. Ka1 {[%clk 0:00:06]}  Qa2# {[%clk 0:00:12]} 0-1


[Site "https://www.chess.com"]

[Event "Titled Tuesday Blitz July 4 Late 2023"]
[White "Zavgorodniy, Sergiy"]
[Black "Mikhalsky, Vladimir"]
[WhiteFideId "14110148"]
[BlackFideId "14144352"]
[WhiteElo "2592"]
[BlackElo "2424"]
[Result "1-0"]
[Round "4"]
[TimeControl "180+2"]
[Date "2023.07.04"]
[WhiteClock "0:00:15"]
[BlackClock "0:00:00"]
[Board "76"]

1. d4 {[%clk 0:02:59]}  Nf6 {[%clk 0:02:53]} 2. c4 {[%clk 0:02:59]}  g6 {[%clk 0:02:52]} 3. Nc3 {[%clk 0:02:59]}  Bg7 {[%clk 0:02:53]} 4. e4 {[%clk 0:02:59]}  O-O {[%clk 0:02:53]} 5. Be2 {[%clk 0:03:00]}  d6 {[%clk 0:02:53]} 6. Nf3 {[%clk 0:03:00]}  e5 {[%clk 0:02:52]} 7. O-O {[%clk 0:03:00]}  Nbd7 {[%clk 0:02:51]} 8. Qc2 {[%clk 0:03:00]}  c6 {[%clk 0:02:48]} 9. Rd1 {[%clk 0:02:47]}  Qe7 {[%clk 0:02:47]} 10. d5 {[%clk 0:02:47]}  c5 {[%clk 0:02:36]} 11. Bg5 {[%clk 0:02:47]}  h6 {[%clk 0:02:29]} 12. Bd2 {[%clk 0:02:46]}  Nh5 {[%clk 0:02:25]} 13. g3 {[%clk 0:02:46]}  a6 {[%clk 0:02:04]} 14. a3 {[%clk 0:02:39]}  Qe8 {[%clk 0:02:03]} 15. Nh4 {[%clk 0:02:33]}  Nhf6 {[%clk 0:01:54]} 16. b4 {[%clk 0:02:31]}  Qe7 {[%clk 0:01:41]} 17. Rab1 {[%clk 0:02:30]}  Ne8 {[%clk 0:01:40]} 18. Kg2 {[%clk 0:02:23]}  h5 {[%clk 0:01:37]} 19. Bd3 {[%clk 0:02:09]}  Bf6 {[%clk 0:01:34]} 20. Nf3 {[%clk 0:02:07]}  h4 {[%clk 0:01:34]} 21. h3 {[%clk 0:02:03]}  hxg3 {[%clk 0:01:30]} 22. fxg3 {[%clk 0:02:04]}  Ng7 {[%clk 0:01:29]} 23. g4 {[%clk 0:01:54]}  Bh4 {[%clk 0:01:24]} 24. g5 {[%clk 0:01:47]}  Nh5 {[%clk 0:01:14]} 25. Nxh4 {[%clk 0:01:45]}  Nf4+ {[%clk 0:01:14]} 26. Bxf4 {[%clk 0:01:44]}  exf4 {[%clk 0:01:14]} 27. Nf3 {[%clk 0:01:44]}  Ne5 {[%clk 0:01:14]} 28. h4 {[%clk 0:01:35]}  Qd7 {[%clk 0:01:08]} 29. Nxe5 {[%clk 0:01:23]}  Qh3+ {[%clk 0:01:07]} 30. Kg1 {[%clk 0:01:21]}  dxe5 {[%clk 0:00:52]} 31. Qh2 {[%clk 0:01:02]}  Qg4+ {[%clk 0:00:47]} 32. Kf2 {[%clk 0:01:02]}  cxb4 {[%clk 0:00:46]} 33. axb4 {[%clk 0:01:01]}  a5 {[%clk 0:00:36]} 34. b5 {[%clk 0:00:57]}  a4 {[%clk 0:00:35]} 35. Be2 {[%clk 0:00:54]}  Qd7 {[%clk 0:00:33]} 36. c5 {[%clk 0:00:46]}  Qc7 {[%clk 0:00:26]} 37. c6 {[%clk 0:00:46]}  Qb6+ {[%clk 0:00:25]} 38. Kf1 {[%clk 0:00:43]}  Qc5 {[%clk 0:00:25]} 39. Rdc1 {[%clk 0:00:41]}  a3 {[%clk 0:00:20]} 40. Qf2 {[%clk 0:00:41]}  Qd6 {[%clk 0:00:16]} 41. Ra1 {[%clk 0:00:40]}  Bh3+ {[%clk 0:00:14]} 42. Kg1 {[%clk 0:00:38]}  bxc6 {[%clk 0:00:14]} 43. dxc6 {[%clk 0:00:34]}  Qb4 {[%clk 0:00:12]} 44. Kh2 {[%clk 0:00:33]}  Be6 {[%clk 0:00:11]} 45. Bf3 {[%clk 0:00:25]}  Rfd8 {[%clk 0:00:10]} 46. Nd5 {[%clk 0:00:23]}  Bxd5 {[%clk 0:00:09]} 47. exd5 {[%clk 0:00:23]}  e4 {[%clk 0:00:09]} 48. c7 {[%clk 0:00:19]}  Rdc8 {[%clk 0:00:08]} 49. Bg4 {[%clk 0:00:20]}  e3 {[%clk 0:00:07]} 50. Qe2 {[%clk 0:00:18]}  Qb2 {[%clk 0:00:03]} 51. Rcb1 {[%clk 0:00:16]}  Qxe2+ {[%clk 0:00:02]} 52. Bxe2 {[%clk 0:00:17]}  Rxc7 {[%clk 0:00:02]} 53. Ra2 {[%clk 0:00:16]}  Rd7 {[%clk 0:00:00]} 54. Bf3 {[%clk 0:00:15]} 1-0


[Site "https://www.chess.com"]

[Event "Titled Tuesday Blitz July 4 Late 2023"]
[White "Jaskolka, Tomasz"]
[Black "Toolin, Christopher"]
[WhiteFideId "1170791"]
[BlackFideId "2024543"]
[WhiteElo "2590"]
[BlackElo "2399"]
[Result "0-1"]
[Round "4"]
[TimeControl "180+2"]
[Date "2023.07.04"]
[WhiteClock "0:00:06"]
[BlackClock "0:00:09"]
[Board "77"]

1. d4 {[%clk 0:03:00]}  Nf6 {[%clk 0:02:59]} 2. Nc3 {[%clk 0:03:01]}  e6 {[%clk 0:02:57]} 3. e4 {[%clk 0:02:59]}  d5 {[%clk 0:02:57]} 4. e5 {[%clk 0:03:00]}  Nfd7 {[%clk 0:02:57]} 5. f4 {[%clk 0:02:59]}  c5 {[%clk 0:02:58]} 6. Nce2 {[%clk 0:02:59]}  Nc6 {[%clk 0:02:58]} 7. c3 {[%clk 0:02:59]}  Qb6 {[%clk 0:02:57]} 8. Nf3 {[%clk 0:02:59]}  Be7 {[%clk 0:02:56]} 9. g3 {[%clk 0:02:56]}  O-O {[%clk 0:02:54]} 10. Bh3 {[%clk 0:02:56]}  Kh8 {[%clk 0:02:14]} 11. O-O {[%clk 0:02:50]}  f6 {[%clk 0:02:14]} 12. Kh1 {[%clk 0:02:48]}  cxd4 {[%clk 0:02:13]} 13. cxd4 {[%clk 0:02:48]}  f5 {[%clk 0:02:06]} 14. Rb1 {[%clk 0:02:37]}  a5 {[%clk 0:01:57]} 15. Be3 {[%clk 0:02:36]}  Ndb8 {[%clk 0:01:54]} 16. Rg1 {[%clk 0:02:34]}  Bd7 {[%clk 0:01:54]} 17. g4 {[%clk 0:02:31]}  fxg4 {[%clk 0:01:55]} 18. Bxg4 {[%clk 0:02:31]}  Na6 {[%clk 0:01:49]} 19. a3 {[%clk 0:02:19]}  Nc7 {[%clk 0:01:46]} 20. Qf1 {[%clk 0:02:15]}  Qb3 {[%clk 0:01:41]} 21. Bf2 {[%clk 0:01:52]}  Be8 {[%clk 0:01:33]} 22. Nc1 {[%clk 0:01:11]}  Qc2 {[%clk 0:01:28]} 23. Ne2 {[%clk 0:00:49]}  Bg6 {[%clk 0:01:24]} 24. Rc1 {[%clk 0:00:50]}  Qb3 {[%clk 0:01:05]} 25. Bh4 {[%clk 0:00:45]}  Rae8 {[%clk 0:00:49]} 26. Bxe7 {[%clk 0:00:45]}  Rxe7 {[%clk 0:00:50]} 27. Rg3 {[%clk 0:00:41]}  Be4 {[%clk 0:00:47]} 28. Qh3 {[%clk 0:00:20]}  Qxb2 {[%clk 0:00:41]} 29. Re1 {[%clk 0:00:21]}  Nxd4 {[%clk 0:00:37]} 30. Nxd4 {[%clk 0:00:21]}  Qxd4 {[%clk 0:00:38]} 31. Reg1 {[%clk 0:00:17]}  Rxf4 {[%clk 0:00:31]} 32. Qh4 {[%clk 0:00:12]}  Qc5 {[%clk 0:00:19]} 33. Qg5 {[%clk 0:00:08]}  Ref7 {[%clk 0:00:17]} 34. Rf1 {[%clk 0:00:04]}  h6 {[%clk 0:00:15]} 35. Qd8+ {[%clk 0:00:03]}  Qf8 {[%clk 0:00:15]} 36. Qxf8+ {[%clk 0:00:03]}  Rxf8 {[%clk 0:00:15]} 37. Kg2 {[%clk 0:00:04]}  Nb5 {[%clk 0:00:14]} 38. Kh3 {[%clk 0:00:03]}  Bf5 {[%clk 0:00:08]} 39. Bxf5 {[%clk 0:00:03]}  R8xf5 {[%clk 0:00:09]} 40. Kg2 {[%clk 0:00:03]}  d4 {[%clk 0:00:08]} 41. Rf2 {[%clk 0:00:02]}  d3 {[%clk 0:00:08]} 42. Rd2 {[%clk 0:00:01]}  Nc3 {[%clk 0:00:07]} 43. Rxd3 {[%clk 0:00:01]}  Nd5 {[%clk 0:00:08]} 44. Kf2 {[%clk 0:00:01]}  g5 {[%clk 0:00:06]} 45. Rb3 {[%clk 0:00:02]}  b6 {[%clk 0:00:06]} 46. Rb5 {[%clk 0:00:02]}  Nc3 {[%clk 0:00:05]} 47. Rb3 {[%clk 0:00:02]}  Ne4+ {[%clk 0:00:06]} 48. Ke3 {[%clk 0:00:02]}  Nxg3 {[%clk 0:00:06]} 49. hxg3 {[%clk 0:00:03]}  Rxf3+ {[%clk 0:00:07]} 50. Ke4 {[%clk 0:00:03]}  Rxb3 {[%clk 0:00:08]} 51. g4 {[%clk 0:00:04]}  Rxa3 {[%clk 0:00:07]} 52. gxf5 {[%clk 0:00:04]}  exf5+ {[%clk 0:00:08]} 53. Kxf5 {[%clk 0:00:04]}  Re3 {[%clk 0:00:08]} 54. Ke6 {[%clk 0:00:04]}  a4 {[%clk 0:00:09]} 55. Kd6 {[%clk 0:00:04]}  a3 {[%clk 0:00:10]} 56. e6 {[%clk 0:00:05]}  a2 {[%clk 0:00:11]} 57. Kd7 {[%clk 0:00:05]}  a1=Q {[%clk 0:00:10]} 58. Ke7 {[%clk 0:00:05]}  Qe5 {[%clk 0:00:09]} 59. Kf8 {[%clk 0:00:05]}  Rf3+ {[%clk 0:00:10]} 60. Ke7 {[%clk 0:00:05]}  Qf6+ {[%clk 0:00:10]} 61. Kd7 {[%clk 0:00:05]}  Rd3+ {[%clk 0:00:10]} 62. Kc6 {[%clk 0:00:04]}  Qxe6+ {[%clk 0:00:10]} 63. Kb7 {[%clk 0:00:05]}  b5 {[%clk 0:00:08]} 64. Kc7 {[%clk 0:00:05]}  Rd7+ {[%clk 0:00:09]} 65. Kc8 {[%clk 0:00:06]}  Qe8# {[%clk 0:00:09]} 0-1


[Site "https://www.chess.com"]

[Event "Titled Tuesday Blitz July 4 Late 2023"]
[White "Silva, Pedro Gil Ferreira Da"]
[Black "Subelj, Jan"]
[WhiteFideId "1946102"]
[BlackFideId "14618583"]
[WhiteElo "2381"]
[BlackElo "2590"]
[Result "0-1"]
[Round "4"]
[TimeControl "180+2"]
[Date "2023.07.04"]
[WhiteClock "0:00:18"]
[BlackClock "0:00:19"]
[Board "78"]

1. e4 {[%clk 0:02:59]}  d6 {[%clk 0:03:00]} 2. d4 {[%clk 0:02:56]}  Nf6 {[%clk 0:03:01]} 3. Nc3 {[%clk 0:02:55]}  e5 {[%clk 0:03:02]} 4. Nf3 {[%clk 0:02:54]}  Nbd7 {[%clk 0:03:01]} 5. g3 {[%clk 0:02:50]}  Be7 {[%clk 0:02:59]} 6. Bg2 {[%clk 0:02:50]}  O-O {[%clk 0:02:55]} 7. O-O {[%clk 0:02:51]}  c6 {[%clk 0:02:48]} 8. Re1 {[%clk 0:02:49]}  Qc7 {[%clk 0:02:41]} 9. a4 {[%clk 0:02:47]}  Rd8 {[%clk 0:02:39]} 10. h3 {[%clk 0:02:42]}  b6 {[%clk 0:02:37]} 11. d5 {[%clk 0:02:40]}  cxd5 {[%clk 0:02:32]} 12. exd5 {[%clk 0:02:41]}  Bf8 {[%clk 0:02:27]} 13. Ng5 {[%clk 0:02:36]}  a6 {[%clk 0:02:24]} 14. Be3 {[%clk 0:02:30]}  Bb7 {[%clk 0:02:23]} 15. Nge4 {[%clk 0:02:23]}  Rac8 {[%clk 0:02:22]} 16. Nxf6+ {[%clk 0:02:22]}  Nxf6 {[%clk 0:02:23]} 17. Qe2 {[%clk 0:02:18]}  Rb8 {[%clk 0:01:47]} 18. g4 {[%clk 0:02:06]}  Nd7 {[%clk 0:01:42]} 19. g5 {[%clk 0:01:57]}  Nc5 {[%clk 0:01:37]} 20. h4 {[%clk 0:01:47]}  Bc8 {[%clk 0:01:37]} 21. h5 {[%clk 0:01:42]}  Bf5 {[%clk 0:01:35]} 22. h6 {[%clk 0:01:39]}  Qd7 {[%clk 0:01:27]} 23. b4 {[%clk 0:01:23]}  Nb7 {[%clk 0:01:19]} 24. Ne4 {[%clk 0:01:22]}  b5 {[%clk 0:01:12]} 25. axb5 {[%clk 0:01:14]}  axb5 {[%clk 0:01:06]} 26. Ra7 {[%clk 0:01:13]}  Rdc8 {[%clk 0:01:04]} 27. c3 {[%clk 0:01:01]}  Rc4 {[%clk 0:00:47]} 28. hxg7 {[%clk 0:00:47]}  Bxe4 {[%clk 0:00:40]} 29. gxf8=Q+ {[%clk 0:00:46]}  Rxf8 {[%clk 0:00:40]} 30. Bxe4 {[%clk 0:00:36]}  Rxe4 {[%clk 0:00:41]} 31. Qf3 {[%clk 0:00:32]}  Rc4 {[%clk 0:00:37]} 32. Bd2 {[%clk 0:00:30]}  Rfc8 {[%clk 0:00:37]} 33. Re4 {[%clk 0:00:30]}  Rxe4 {[%clk 0:00:36]} 34. Qxe4 {[%clk 0:00:31]}  Rc4 {[%clk 0:00:35]} 35. Qf3 {[%clk 0:00:30]}  Qc8 {[%clk 0:00:30]} 36. Kf1 {[%clk 0:00:24]}  Rg4 {[%clk 0:00:20]} 37. Rxb7 {[%clk 0:00:23]}  Qc4+ {[%clk 0:00:19]} 38. Qe2 {[%clk 0:00:21]}  Rg1+ {[%clk 0:00:19]} 39. Kxg1 {[%clk 0:00:21]}  Qxe2 {[%clk 0:00:20]} 40. Be3 {[%clk 0:00:21]}  Qd1+ {[%clk 0:00:19]} 41. Kg2 {[%clk 0:00:18]}  Qxd5+ {[%clk 0:00:19]} 0-1


[Site "https://www.chess.com"]

[Event "Titled Tuesday Blitz July 4 Late 2023"]
[White "Taranenko, Evgueniy"]
[Black "Petesch, Gabriel"]
[WhiteFideId "14122138"]
[BlackFideId "2032465"]
[WhiteElo "2372"]
[BlackElo "2580"]
[Result "1-0"]
[Round "4"]
[TimeControl "180+2"]
[Date "2023.07.04"]
[WhiteClock "0:00:20"]
[BlackClock "0:00:03"]
[Board "79"]

1. e4 {[%clk 0:03:00]}  d5 {[%clk 0:02:50]} 2. exd5 {[%clk 0:02:59]}  Qxd5 {[%clk 0:02:48]} 3. Nc3 {[%clk 0:02:59]}  Qd6 {[%clk 0:02:49]} 4. d4 {[%clk 0:02:58]}  Nf6 {[%clk 0:02:47]} 5. Nf3 {[%clk 0:02:59]}  c6 {[%clk 0:02:46]} 6. g3 {[%clk 0:02:59]}  Bg4 {[%clk 0:02:45]} 7. Bg2 {[%clk 0:03:00]}  e6 {[%clk 0:02:44]} 8. O-O {[%clk 0:03:00]}  Be7 {[%clk 0:02:42]} 9. h3 {[%clk 0:03:00]}  Bxf3 {[%clk 0:02:40]} 10. Bxf3 {[%clk 0:02:54]}  O-O {[%clk 0:02:38]} 11. Bf4 {[%clk 0:02:50]}  Qd7 {[%clk 0:02:38]} 12. Ne4 {[%clk 0:02:45]}  Nxe4 {[%clk 0:02:33]} 13. Bxe4 {[%clk 0:02:44]}  Na6 {[%clk 0:02:15]} 14. c3 {[%clk 0:02:38]}  Nc7 {[%clk 0:02:12]} 15. Qh5 {[%clk 0:02:19]}  g6 {[%clk 0:02:03]} 16. Qh6 {[%clk 0:02:18]}  f5 {[%clk 0:01:40]} 17. Bg2 {[%clk 0:02:11]}  Rf7 {[%clk 0:01:31]} 18. Be5 {[%clk 0:02:03]}  Nd5 {[%clk 0:01:27]} 19. Rfe1 {[%clk 0:01:50]}  Re8 {[%clk 0:01:24]} 20. Rad1 {[%clk 0:01:47]}  Qd8 {[%clk 0:01:21]} 21. Qc1 {[%clk 0:01:37]}  Ref8 {[%clk 0:01:14]} 22. f4 {[%clk 0:01:27]}  Qd7 {[%clk 0:01:14]} 23. c4 {[%clk 0:01:18]}  Nb6 {[%clk 0:01:14]} 24. b3 {[%clk 0:01:14]}  Re8 {[%clk 0:01:13]} 25. Re2 {[%clk 0:01:12]}  Bf8 {[%clk 0:01:13]} 26. Rde1 {[%clk 0:01:11]}  Rfe7 {[%clk 0:01:12]} 27. Qc3 {[%clk 0:01:09]}  Qc8 {[%clk 0:01:07]} 28. a4 {[%clk 0:01:00]}  Nd7 {[%clk 0:01:03]} 29. Bd6 {[%clk 0:01:00]}  Rf7 {[%clk 0:01:01]} 30. Qb4 {[%clk 0:00:54]}  a5 {[%clk 0:00:46]} 31. Qa3 {[%clk 0:00:51]}  Bxd6 {[%clk 0:00:45]} 32. Qxd6 {[%clk 0:00:51]}  Nf8 {[%clk 0:00:46]} 33. Qc5 {[%clk 0:00:50]}  Rd8 {[%clk 0:00:45]} 34. d5 {[%clk 0:00:44]}  cxd5 {[%clk 0:00:38]} 35. Qxc8 {[%clk 0:00:43]}  Rxc8 {[%clk 0:00:39]} 36. cxd5 {[%clk 0:00:44]}  Kg7 {[%clk 0:00:37]} 37. dxe6 {[%clk 0:00:43]}  Re7 {[%clk 0:00:38]} 38. Bd5 {[%clk 0:00:41]}  Kf6 {[%clk 0:00:38]} 39. Bc4 {[%clk 0:00:41]}  Rd8 {[%clk 0:00:36]} 40. Re5 {[%clk 0:00:40]}  b6 {[%clk 0:00:35]} 41. Kf2 {[%clk 0:00:39]}  Rd6 {[%clk 0:00:34]} 42. g4 {[%clk 0:00:35]}  h6 {[%clk 0:00:33]} 43. gxf5 {[%clk 0:00:20]}  gxf5 {[%clk 0:00:34]} 44. Rb5 {[%clk 0:00:19]}  Ng6 {[%clk 0:00:32]} 45. Kg3 {[%clk 0:00:18]}  Rd4 {[%clk 0:00:30]} 46. Rf1 {[%clk 0:00:17]}  h5 {[%clk 0:00:29]} 47. Rxb6 {[%clk 0:00:17]}  h4+ {[%clk 0:00:29]} 48. Kh2 {[%clk 0:00:17]}  Nxf4 {[%clk 0:00:29]} 49. Rb5 {[%clk 0:00:18]}  Rg7 {[%clk 0:00:27]} 50. Rf2 {[%clk 0:00:17]}  Rg3 {[%clk 0:00:27]} 51. Bf1 {[%clk 0:00:18]}  Kxe6 {[%clk 0:00:24]} 52. Rb6+ {[%clk 0:00:18]}  Ke5 {[%clk 0:00:24]} 53. Rb5+ {[%clk 0:00:18]}  Kd6 {[%clk 0:00:23]} 54. Rxa5 {[%clk 0:00:19]}  Ke6 {[%clk 0:00:19]} 55. Ra6+ {[%clk 0:00:19]}  Ke5 {[%clk 0:00:19]} 56. Ra5+ {[%clk 0:00:20]}  Ke4 {[%clk 0:00:18]} 57. Rb5 {[%clk 0:00:19]}  Ke3 {[%clk 0:00:17]} 58. Rc2 {[%clk 0:00:19]}  Nd5 {[%clk 0:00:08]} 59. Bg2 {[%clk 0:00:16]}  Nf4 {[%clk 0:00:03]} 60. Rxf5 {[%clk 0:00:14]}  Nxg2 {[%clk 0:00:03]} 61. Rxg2 {[%clk 0:00:14]}  Rxg2+ {[%clk 0:00:04]} 62. Kxg2 {[%clk 0:00:15]}  Rd2+ {[%clk 0:00:04]} 63. Kf1 {[%clk 0:00:15]}  Rb2 {[%clk 0:00:04]} 64. Rb5 {[%clk 0:00:15]}  Kf3 {[%clk 0:00:04]} 65. Ke1 {[%clk 0:00:15]}  Kg3 {[%clk 0:00:03]} 66. a5 {[%clk 0:00:16]}  Kxh3 {[%clk 0:00:03]} 67. Rb4 {[%clk 0:00:16]}  Ra2 {[%clk 0:00:02]} 68. Ra4 {[%clk 0:00:16]}  Rxa4 {[%clk 0:00:03]} 69. bxa4 {[%clk 0:00:17]}  Kg3 {[%clk 0:00:02]} 70. a6 {[%clk 0:00:18]}  h3 {[%clk 0:00:02]} 71. a7 {[%clk 0:00:19]}  h2 {[%clk 0:00:03]} 72. a8=Q {[%clk 0:00:19]}  Kh3 {[%clk 0:00:03]} 73. Qh1 {[%clk 0:00:19]}  Kh4 {[%clk 0:00:03]} 74. a5 {[%clk 0:00:20]} 1-0


[Site "https://www.chess.com"]

[Event "Titled Tuesday Blitz July 4 Late 2023"]
[White "Dylag, Emilia"]
[Black "Vovk, Orest"]
[WhiteFideId "21805172"]
[BlackFideId "14113490"]
[WhiteElo "2321"]
[BlackElo "2568"]
[Result "0-1"]
[Round "4"]
[TimeControl "180+2"]
[Date "2023.07.04"]
[WhiteClock "0:01:10"]
[BlackClock "0:02:11"]
[Board "82"]

1. d4 {[%clk 0:02:40]}  h6 {[%clk 0:02:59]} 2. c4 {[%clk 0:02:40]}  g5 {[%clk 0:02:59]} 3. Nc3 {[%clk 0:02:39]}  Bg7 {[%clk 0:03:00]} 4. h4 {[%clk 0:02:38]}  c5 {[%clk 0:02:59]} 5. d5 {[%clk 0:02:36]}  Bxc3+ {[%clk 0:02:59]} 6. bxc3 {[%clk 0:02:35]}  Qa5 {[%clk 0:02:59]} 7. Qd3 {[%clk 0:02:34]}  g4 {[%clk 0:02:57]} 8. h5 {[%clk 0:02:25]}  d6 {[%clk 0:02:56]} 9. e4 {[%clk 0:02:25]}  Nf6 {[%clk 0:02:56]} 10. Bd2 {[%clk 0:02:16]}  Nbd7 {[%clk 0:02:55]} 11. f4 {[%clk 0:02:14]}  gxf3 {[%clk 0:02:53]} 12. Nxf3 {[%clk 0:02:15]}  Ng4 {[%clk 0:02:53]} 13. Be2 {[%clk 0:02:12]}  Nde5 {[%clk 0:02:52]} 14. Nxe5 {[%clk 0:02:12]}  Nxe5 {[%clk 0:02:53]} 15. Qg3 {[%clk 0:02:11]}  Bd7 {[%clk 0:02:47]} 16. O-O {[%clk 0:02:10]}  O-O-O {[%clk 0:02:43]} 17. Bf4 {[%clk 0:02:03]}  Rdg8 {[%clk 0:02:38]} 18. Qe3 {[%clk 0:02:01]}  f6 {[%clk 0:02:34]} 19. a4 {[%clk 0:01:56]}  Bg4 {[%clk 0:02:24]} 20. Bxe5 {[%clk 0:01:44]}  Bxe2 {[%clk 0:02:22]} 21. Qxe2 {[%clk 0:01:26]}  fxe5 {[%clk 0:02:21]} 22. Rf7 {[%clk 0:01:19]}  Qxc3 {[%clk 0:02:15]} 23. Rxe7 {[%clk 0:01:10]}  Qxa1+ {[%clk 0:02:11]} 0-1


[Site "https://www.chess.com"]

[Event "Titled Tuesday Blitz July 4 Late 2023"]
[White "Bruedigam, Martin"]
[Black "Cluke86"]
[WhiteFideId "24608033"]
[WhiteElo "2565"]
[BlackElo "2316"]
[Result "0-1"]
[Round "4"]
[TimeControl "180+2"]
[Date "2023.07.04"]
[WhiteClock "0:00:11"]
[BlackClock "0:00:15"]
[Board "83"]

1. c4 {[%clk 0:03:00]}  e5 {[%clk 0:02:59]} 2. e3 {[%clk 0:02:56]}  d6 {[%clk 0:02:58]} 3. Nf3 {[%clk 0:02:54]}  f5 {[%clk 0:02:56]} 4. d4 {[%clk 0:02:53]}  e4 {[%clk 0:02:56]} 5. Nfd2 {[%clk 0:02:54]}  Nf6 {[%clk 0:02:54]} 6. Nc3 {[%clk 0:02:54]}  c6 {[%clk 0:02:54]} 7. f3 {[%clk 0:02:44]}  d5 {[%clk 0:02:50]} 8. cxd5 {[%clk 0:02:35]}  cxd5 {[%clk 0:02:49]} 9. fxe4 {[%clk 0:02:32]}  fxe4 {[%clk 0:02:45]} 10. Bb5+ {[%clk 0:02:32]}  Bd7 {[%clk 0:02:43]} 11. O-O {[%clk 0:02:33]}  Bxb5 {[%clk 0:02:39]} 12. Nxb5 {[%clk 0:02:31]}  a6 {[%clk 0:02:36]} 13. Nc3 {[%clk 0:02:31]}  Bd6 {[%clk 0:02:18]} 14. Rxf6 {[%clk 0:02:04]}  Qxf6 {[%clk 0:02:15]} 15. Nxd5 {[%clk 0:01:46]}  Qh4 {[%clk 0:02:10]} 16. g3 {[%clk 0:01:36]}  Bxg3 {[%clk 0:02:09]} 17. Qe2 {[%clk 0:01:33]}  Bd6 {[%clk 0:01:52]} 18. Qg2 {[%clk 0:01:21]}  O-O {[%clk 0:01:49]} 19. Nf1 {[%clk 0:01:12]}  Nc6 {[%clk 0:01:40]} 20. Bd2 {[%clk 0:01:12]}  Rf5 {[%clk 0:01:36]} 21. Be1 {[%clk 0:01:05]}  Qh6 {[%clk 0:01:29]} 22. Nc3 {[%clk 0:00:59]}  Rg5 {[%clk 0:01:19]} 23. Bg3 {[%clk 0:00:59]}  Bxg3 {[%clk 0:01:09]} 24. Nxg3 {[%clk 0:00:55]}  Rg4 {[%clk 0:01:07]} 25. Re1 {[%clk 0:00:52]}  Re8 {[%clk 0:00:56]} 26. Ncxe4 {[%clk 0:00:49]}  Rexe4 {[%clk 0:00:54]} 27. h3 {[%clk 0:00:34]}  Rg6 {[%clk 0:00:37]} 28. Qxe4 {[%clk 0:00:30]}  Rxg3+ {[%clk 0:00:36]} 29. Kf2 {[%clk 0:00:30]}  Qg6 {[%clk 0:00:26]} 30. Qd5+ {[%clk 0:00:30]}  Kh8 {[%clk 0:00:17]} 31. Rf1 {[%clk 0:00:22]}  h6 {[%clk 0:00:17]} 32. Ke1 {[%clk 0:00:14]}  Rxe3+ {[%clk 0:00:17]} 33. Kf2 {[%clk 0:00:12]}  Rxh3 {[%clk 0:00:17]} 34. Ke2 {[%clk 0:00:11]}  Qd3+ {[%clk 0:00:15]} 35. Kf2 {[%clk 0:00:11]}  Qe3+ {[%clk 0:00:15]} 36. Kg2 {[%clk 0:00:11]}  Qg3# {[%clk 0:00:15]} 0-1


[Site "https://www.chess.com"]